bitfinex/quotes_SOLUSD_20260120
["timestamp","ask_amount","ask_price","bid_price","bid_amount"]
[1768918805235,9.85573541,128.32,128.22,0.48526731]
[1768918805438,0.49872501,128.32,128.23,9.18717964]
[1768918805643,9.68590465,128.3,128.24,9.18717964]
[1768918805952,0.49872501,128.3,128.25,9.18717964]
[1768918806130,0.49872501,128.3,128.26,17.1]
[1768918806331,8.29320809,128.3,128.26,17.1]
[1768918806535,9.18717964,128.29,128.26,17.1]
[1768918806756,9.68590465,128.29,128.26,17.1]
[1768918806961,9.68590465,128.29,128.26,9.29749042]
[1768918807462,8.29249284,128.31,128.26,18.48467006]
[1768918807751,0.49872501,128.31,128.26,18.96993737]
[1768918807974,8.29150638,128.33,128.28,9.18717964]
[1768918808132,5.71180311,128.32,128.27,9.67244695]
[1768918808456,4.99116801,128.31,128.29,0.48526731]
[1768918808637,0.2,128.34,128.29,0.48526731]
[1768918808638,0.2,128.34,128.3,9.18717964]
[1768918808836,0.2,128.34,128.32,9.18717964]
[1768918809039,0.2,128.34,128.31,17.1]
[1768918809247,9.88590465,128.34,128.32,17.1]
[1768918809445,0.49872501,128.33,128.25,19.4919841]
[1768918809647,0.49872501,128.33,128.28,9.18717964]
[1768918809859,0.49872501,128.33,128.26,24.89618115]
[1768918809860,9.68590465,128.33,128.27,9.18717964]
[1768918810169,0.69872501,128.34,128.3,9.18717964]
[1768918810456,0.69872501,128.34,128.29,9.18717964]
[1768918810637,0.69872501,128.34,128.31,17.1]
[1768918810830,0.69872501,128.34,128.32,17.1]
[1768918811143,9.68590465,128.33,128.23,11.30060176]
[1768918811343,1.78590465,128.33,128.27,0.48526731]
[1768918811752,9.18717964,128.32,128.27,0.48526731]
[1768918811949,9.18717964,128.3,128.25,0.48526731]
[1768918812157,9.18717964,128.29,128.25,0.48526731]
[1768918812458,9.18717964,128.28,128.26,17.08]
[1768918812660,9.18717964,128.28,128.27,1e-08]
[1768918813160,9.18717964,128.28,128.24,0.48526731]
[1768918813357,9.18717964,128.28,128.25,17.08]
[1768918813734,0.49872501,128.29,128.25,17.08]
[1768918814238,9.18717964,128.3,128.26,0.48526731]
[1768918814438,9.18717964,128.28,128.24,0.48526731]
[1768918814737,9.18717964,128.27,128.25,17.08]
[1768918815665,9.18717964,128.29,128.25,17.57872501]
[1768918815838,9.18717964,128.28,128.25,17.08]
[1768918816249,9.18717964,128.29,128.25,17.57872501]
[1768918816450,9.18717964,128.3,128.25,17.57872501]
[1768918816746,0.49923432,128.25,128.14,17.08]
[1768918817062,0.49923432,128.17,128.13,15.7]
[1768918817365,9.18717964,128.16,128.13,15.7]
[1768918817661,9.68641396,128.14,128.1,17.08]
[1768918817852,9.18717964,128.16,128.11,0.49872501]
[1768918818059,9.18717964,128.17,128.12,0.49872501]
[1768918818267,9.68641396,128.14,128.08,0.49872501]
[1768918818460,9.18717964,128.13,128.08,0.49872501]
[1768918818766,16.992008,128.13,128.09,17.08]
[1768918818964,7.80482836,128.13,128.09,17.08]
[1768918819172,0.49923432,128.14,128.09,26.76590465]
[1768918819342,9.68641396,128.15,128.1,0.49872501]
[1768918819842,0.49923432,128.21,128.14,9.18717964]
[1768918820041,0.49923432,128.21,128.1,5.9565132]
[1768918820042,0.49923432,128.21,128.17,9.18717964]
[1768918820264,0.49923432,128.21,128.18,17.08]
[1768918820756,0.49923432,128.23,128.18,17.08]
[1768918820950,0.49923432,128.23,128.18,26.26717964]
[1768918821753,0.49923432,128.22,128.18,17.08]
[1768918822465,0.49923432,128.22,128.19,17.08]
[1768918822670,8.29883887,128.22,128.19,17.08]
[1768918822858,7.79858544,128.23,128.19,26.26717964]
[1768918823248,9.18717964,128.22,128.12,19.51229116]
[1768918823448,0.49923432,128.19,128.13,26.26717964]
[1768918823671,0.49923432,128.19,128.14,9.18717964]
[1768918823970,0.49923432,128.19,128.15,17.08]
[1768918825864,8.30032331,128.19,128.14,9.18717964]
[1768918826060,7.80054394,128.2,128.14,9.18717964]
[1768918826262,0.49923432,128.2,128.15,26.26717964]
[1768918826456,19.4969795,128.23,128.16,9.18717964]
[1768918826457,17.48567253,128.22,128.16,9.18717964]
[1768918826657,8.29766278,128.24,128.19,9.18717964]
[1768918826867,0.49923432,128.24,128.2,17.08]
[1768918827257,8.29713624,128.24,128.2,17.08]
[1768918827678,0.49923432,128.23,128.2,17.08]
[1768918829679,0.49923432,128.25,128.2,26.26361276]
[1768918829874,0.49923432,128.24,128.2,26.26361276]
[1768918830986,0.49923432,128.24,128.2,17.08]
[1768918832688,8.29719509,128.24,128.2,17.08]
[1768918833393,0.49923432,128.24,128.2,17.08]
[1768918833890,8.2973861,128.24,128.2,17.08]
[1768918834070,0.49923432,128.22,128.21,17.08]
[1768918834266,0.49923432,128.21,128.15,8.30253416]
[1768918834584,0.49923432,128.21,128.16,17.57938083]
[1768918834781,9.68284708,128.23,128.17,9.68299359]
[1768918834979,0.49923432,128.22,128.17,9.68299359]
[1768918835182,9.18361276,128.23,128.18,0.49938083]
[1768918835378,9.18361276,128.23,128.19,17.08]
[1768918835578,17.4814568,128.23,128.19,17.08]
[1768918836587,8.29784404,128.23,128.19,17.08]
[1768918836887,0.49923432,128.25,128.2,0.49938083]
[1768918837065,17.47929501,128.27,128.22,0.49938083]
[1768918837265,8.29568225,128.27,128.23,17.08]
[1768918837477,0.49923432,128.26,128.23,17.08]
[1768918839279,8.295907,128.26,128.23,17.08]
[1768918840579,17.47951976,128.26,128.23,17.08]
[1768918840896,8.295907,128.26,128.23,17.08]
[1768918841096,0.49923432,128.23,128.17,9.68299359]
[1768918841271,9.68284708,128.22,128.17,0.49938083]
[1768918841478,9.68284708,128.22,128.18,17.08]
[1768918841982,4.68284709,128.21,128.19,9.27322837]
[1768918843096,4.68284709,128.21,128.19,1.46645674]
[1768918843288,12.48274296,128.21,128.19,1.46645674]
[1768918844399,12.48274296,128.21,128.19,0.01450164]
[1768918844691,9.18361276,128.2,128.16,0.49938083]
[1768918844997,9.18361276,128.2,128.17,17.08]
[1768918845294,5.74403942,128.19,128.17,17.08]
[1768918845497,9.18361276,128.2,128.17,17.08]
[1768918845692,17.44390277,128.21,128.17,17.08]
[1768918846008,0.46028111,128.25,128.19,9.66575734]
[1768918846185,15.39004023,128.24,128.19,9.66575734]
[1768918846380,5.74614636,128.23,128.19,0.48214458]
[1768918846679,5.74614636,128.22,128.19,0.48214458]
[1768918846895,17.44208724,128.24,128.19,0.48214458]
[1768918847283,5.74722932,128.23,128.19,0.48214458]
[1768918847599,5.74722932,128.22,128.19,0.48214458]
[1768918847972,14.93084208,128.22,128.18,0.48214458]
[1768918848176,9.64389387,128.22,128.19,17.08]
[1768918848495,0.46028111,128.22,128.19,17.08]
[1768918848801,17.44374493,128.21,128.16,0.48214458]
[1768918849005,5.74793892,128.2,128.17,17.08]
[1768918849302,9.18361276,128.2,128.17,17.08]
[1768918849686,9.64389387,128.23,128.18,0.48214458]
[1768918849888,0.46028111,128.23,128.19,0.48214458]
[1768918850101,0.46028111,128.23,128.19,9.66575734]
[1768918850277,0.46028111,128.23,128.19,0.48214458]
[1768918851204,0.46028111,128.23,128.19,17.46635589]
[1768918851396,0.46028111,128.23,128.19,8.28274313]
[1768918851592,0.46028111,128.23,128.19,0.48214458]
[1768918851779,9.18361276,128.21,128.2,17.08]
[1768918852185,9.64389387,128.22,128.2,17.08]
[1768918853295,0.46028111,128.21,128.2,16.58]
[1768918853496,9.64389387,128.21,128.2,16.58]
[1768918854098,9.64389387,128.21,128.17,0.48214458]
[1768918854399,9.64389387,128.21,128.18,17.08]
[1768918855381,9.64389387,128.2,128.18,17.08]
[1768918855794,17.44363341,128.21,128.18,17.08]
[1768918855997,0.46028111,128.22,128.19,0.48214458]
[1768918856226,9.64389387,128.22,128.19,0.48214458]
[1768918856420,9.64389387,128.23,128.19,0.48214458]
[1768918856589,9.64389387,128.23,128.2,17.08]
[1768918857691,7.7980803,128.24,128.2,17.08]
[1768918857692,0.46028111,128.24,128.2,17.56214458]
[1768918857884,0.46028111,128.24,128.2,25.36239461]
[1768918858086,0.46028111,128.24,128.2,17.56214458]
[1768918858298,0.46028111,128.26,128.21,0.48214458]
[1768918858504,9.64389387,128.24,128.19,8.28291467]
[1768918858706,9.64389387,128.24,128.2,17.08]
[1768918859887,9.64389387,128.24,128.2,17.56214458]
[1768918860086,0.46028111,128.24,128.2,17.56214458]
[1768918860504,0.46028111,128.24,128.2,25.36240351]
[1768918860705,0.46028111,128.24,128.2,34.54601627]
[1768918860889,0.46028111,128.24,128.21,0.48214458]
[1768918861084,5.71485817,128.23,128.21,0.48214458]
[1768918861406,0.46028111,128.26,128.22,9.66575734]
[1768918861619,0.46028111,128.29,128.24,0.48214458]
[1768918861912,0.46028111,128.29,128.25,9.66575734]
[1768918861913,5.6517465,128.29,128.25,9.66575734]
[1768918862088,0.46028111,128.29,128.26,17.08]
[1768918863000,0.46028111,128.3,128.26,34.54236136]
[1768918863313,0.2,128.34,128.29,9.18361276]
[1768918863490,0.66028111,128.34,128.3,17.40614458]
[1768918863690,0.66028111,128.34,128.3,17.37614458]
[1768918863892,0.66028111,128.34,128.3,26.55975734]
[1768918864489,0.66028111,128.34,128.31,9.18361276]
[1768918864490,0.2,128.34,128.31,9.18361276]
[1768918864694,0.2,128.34,128.32,9.18361276]
[1768918864897,0.2,128.34,128.33,17.08]
[1768918865108,8.44916638,128.39,128.33,26.26361276]
[1768918865312,0.66028111,128.39,128.34,9.18361276]
[1768918865499,0.66028111,128.39,128.35,9.18361276]
[1768918865695,0.66028111,128.39,128.36,17.08]
[1768918866004,0.66028111,128.39,128.36,16.88000004]
[1768918867511,0.46028111,128.38,128.36,16.88000004]
[1768918868087,17.17252768,128.39,128.36,16.88000004]
[1768918869915,0.2,128.39,128.36,16.88000004]
[1768918870115,0.2,128.39,128.37,17.08]
[1768918870603,0.46028111,128.42,128.38,0.48214458]
[1768918870804,0.66028111,128.44,128.38,9.66575734]
[1768918871006,9.64389387,128.45,128.39,7.24277393]
[1768918871308,27.50550876,128.46,128.4,24.86786707]
[1768918871618,10.07709053,128.46,128.41,9.18361276]
[1768918871792,10.53737164,128.46,128.4,34.05147983]
[1768918871998,0.46028111,128.45,128.4,34.05147983]
[1768918872195,10.53737164,128.46,128.41,9.18361276]
[1768918872412,0.2,128.47,128.45,9.18361276]
[1768918872616,0.2,128.47,128.46,17.08]
[1768918872899,0.2,128.47,128.44,0.48214458]
[1768918873115,0.2,128.47,128.45,17.08]
[1768918873298,0.2,128.47,128.46,1.57311882]
[1768918873497,0.2,128.47,128.46,17.08]
[1768918874111,9.64389387,128.51,128.46,17.56214458]
[1768918874419,9.64389387,128.52,128.47,0.48214458]
[1768918874803,17.42482748,128.52,128.47,0.48214458]
[1768918875317,0.47642322,128.49,128.48,17.08]
[1768918875796,9.18361276,128.5,128.48,16.58]
[1768918876117,9.63119512,128.49,128.45,0.46063389]
[1768918876310,27.68334356,128.51,128.46,17.08]
[1768918876616,0.44758236,128.5,128.46,17.08]
[1768918876812,9.18361276,128.49,128.46,17.08]
[1768918878222,9.18361276,128.49,128.46,17.54063389]
[1768918878614,16.96632974,128.49,128.46,17.54063389]
[1768918879599,16.96632974,128.49,128.46,0.46063389]
[1768918879828,16.96632974,128.49,128.47,17.06]
[1768918880028,9.18361276,128.49,128.47,17.06]
[1768918880517,9.18361276,128.49,128.47,1e-08]
[1768918881423,9.18361276,128.49,128.45,0.46063389]
[1768918881604,9.18361276,128.49,128.46,17.06]
[1768918881798,9.18361276,128.49,128.46,17.52063389]
[1768918882327,17.41292976,128.51,128.47,0.46063389]
[1768918882622,16.96474411,128.52,128.48,0.46063389]
[1768918882822,16.96350043,128.54,128.49,17.06]
[1768918883032,16.96350043,128.54,128.5,0.46063389]
[1768918883401,17.41108279,128.54,128.49,17.52063389]
[1768918883602,17.41108279,128.54,128.5,0.46063389]
[1768918883894,8.22747003,128.54,128.5,0.46063389]
[1768918884710,28.6321943,128.55,128.5,0.46063389]
[1768918884711,7.77930898,128.55,128.5,0.46063389]
[1768918885239,16.96292174,128.55,128.5,0.46063389]
[1768918885530,17.40990227,128.56,128.51,0.46063389]
[1768918885836,0.2,128.57,128.52,0.46063389]
[1768918885837,17.60929508,128.57,128.52,0.46063389]
[1768918886331,9.18361276,128.56,128.52,0.46063389]
[1768918886832,9.63119512,128.56,128.53,17.06]
[1768918887007,9.58690192,128.56,128.53,17.03]
[1768918887202,0.44758236,128.56,128.53,17.03]
[1768918888329,7.77864078,128.56,128.53,17.03]
[1768918889023,7.77864078,128.56,128.53,17.06]
[1768918889212,36.81171569,128.56,128.53,17.06]
[1768918889607,17.3655427,128.56,128.53,17.06]
[1768918889801,16.91796034,128.56,128.53,17.06]
[1768918890527,17.3655427,128.56,128.53,17.06]
[1768918890827,9.13931956,128.54,128.52,17.06]
[1768918891031,9.58690192,128.54,128.52,17.06]
[1768918891526,9.13931956,128.53,128.5,0.46063389]
[1768918892410,9.13931956,128.52,128.48,17.52063389]
[1768918892716,9.13931956,128.52,128.49,0.46063389]
[1768918893932,16.92046178,128.52,128.49,0.46063389]
[1768918894136,9.13931956,128.51,128.49,0.46063389]
[1768918894437,0.44758236,128.51,128.46,17.52063389]
[1768918894606,16.92163284,128.5,128.46,17.52063389]
[1768918894926,9.13931956,128.49,128.46,17.52063389]
[1768918895114,9.13931956,128.49,128.47,0.46063389]
[1768918896335,16.92163284,128.5,128.47,0.46063389]
[1768918896628,9.13931956,128.52,128.48,0.46063389]
[1768918896829,16.92023681,128.52,128.48,0.46063389]
[1768918897026,9.13931956,128.51,128.48,0.46063389]
[1768918898030,16.92023681,128.52,128.48,0.46063389]
[1768918898233,9.13931956,128.51,128.48,0.46063389]
[1768918898434,9.13931956,128.5,128.47,17.52063389]
[1768918898737,8.22947659,128.51,128.47,17.52063389]
[1768918898930,9.13931956,128.5,128.47,17.52063389]
[1768918900612,9.13931956,128.5,128.48,0.46063389]
[1768918901020,16.92121379,128.51,128.48,0.46063389]
[1768918901936,9.13931956,128.52,128.48,0.46063389]
[1768918902929,16.92046985,128.52,128.48,0.46063389]
[1768918903636,9.13931956,128.51,128.48,0.46063389]
[1768918904738,9.13931956,128.52,128.48,0.46063389]
[1768918904917,16.91979457,128.53,128.48,0.46063389]
[1768918905915,17.36737693,128.53,128.48,0.46063389]
[1768918906921,9.13931956,128.54,128.49,0.49183585]
[1768918907118,9.58690192,128.56,128.51,0.49183585]
[1768918908139,5.40497909,128.55,128.51,0.49183585]
[1768918908346,17.36552798,128.56,128.51,0.49183585]
[1768918908519,5.40498081,128.55,128.51,0.49183585]
[1768918908719,17.36552798,128.56,128.51,0.49183585]
[1768918908945,17.36552798,128.56,128.52,0.49183585]
[1768918909240,5.41003988,128.55,128.52,0.46183586]
[1768918909420,3.91003988,128.55,128.53,17.06]
[1768918909742,8.44223797,128.57,128.53,17.06]
[1768918910118,8.44223797,128.57,128.53,17.03000005]
[1768918910322,17.58155753,128.57,128.53,17.03000005]
[1768918910635,8.44223797,128.57,128.5,7.7818088]
[1768918910812,9.60363437,128.54,128.51,17.06]
[1768918912023,0.46431481,128.54,128.51,17.06]
[1768918912547,0.46431481,128.53,128.51,17.06]
[1768918912748,9.60363437,128.54,128.51,17.06]
[1768918913435,0.46431481,128.54,128.51,17.06]
[1768918914443,0.46431481,128.55,128.51,26.22173721]
[1768918915334,0.46431481,128.55,128.51,17.08241765]
[1768918916421,0.46431481,128.56,128.51,33.98069537]
[1768918916760,5.66183466,128.56,128.52,9.16173721]
[1768918917742,0.2,128.57,128.54,0.02241765]
[1768918917953,0.2,128.57,128.53,9.13931956]
[1768918918252,0.2,128.57,128.53,9.16173721]
[1768918918432,0.2,128.57,128.54,9.13931956]
[1768918918642,0.2,128.57,128.54,26.20173721]
[1768918919724,0.2,128.57,128.54,33.98137534]
[1768918920656,0.2,128.59,128.56,9.13931956]
[1768918921263,0.2,128.59,128.54,44.26883682]
[1768918921447,5.33696574,128.58,128.56,16.91740708]
[1768918921765,0.46431481,128.62,128.57,26.17931956]
[1768918921975,5.33728625,128.61,128.58,9.13931956]
[1768918922158,0.46431481,128.62,128.57,17.04]
[1768918922366,0.46431481,128.62,128.56,27.22426051]
[1768918922367,5.79760606,128.61,128.58,17.04]
[1768918922665,0.46431481,128.61,128.58,17.04]
[1768918925173,0.46431481,128.59,128.57,17.04]
[1768918925343,0.46431481,128.59,128.54,9.13931956]
[1768918925344,0.46431481,128.57,128.54,17.04]
[1768918925745,0.46431481,128.56,128.54,17.04]
[1768918926242,0.46431481,128.56,128.51,16.92072962]
[1768918926459,0.46431481,128.56,128.52,17.04]
[1768918926664,9.13931956,128.57,128.53,7.78017239]
[1768918926842,9.60363437,128.58,128.53,7.78017239]
[1768918927164,17.38097264,128.58,128.53,7.7802509]
[1768918927361,0.46431481,128.58,128.54,9.13931956]
[1768918927541,8.24118437,128.59,128.55,17.04]
[1768918927743,5.79134995,128.58,128.55,17.04]
[1768918927968,0.46431481,128.58,128.55,17.04]
[1768918928641,0.46431481,128.59,128.55,17.04]
[1768918928971,0.46431481,128.59,128.55,26.17931956]
[1768918929557,0.46431481,128.59,128.56,9.13931956]
[1768918930272,16.91511966,128.61,128.56,9.13931956]
[1768918930273,0.46431481,128.6,128.56,9.13931956]
[1768918931564,0.46431481,128.6,128.56,16.91774022]
[1768918931756,0.46431481,128.58,128.54,17.04]
[1768918932075,0.46431481,128.57,128.54,17.04]
[1768918933251,9.60363437,128.58,128.54,17.04]
[1768918933451,0.46431481,128.57,128.54,17.04]
[1768918936285,0.46431481,128.57,128.53,16.91955045]
[1768918936486,9.60708814,128.56,128.52,0.48088457]
[1768918936695,9.13931956,128.55,128.52,0.48088457]
[1768918936860,9.60708814,128.56,128.52,0.48088457]
[1768918937589,9.13931956,128.55,128.52,0.48088457]
[1768918937772,16.91853311,128.55,128.51,17.52088457]
[1768918938096,16.91853311,128.55,128.52,0.48088457]
[1768918939992,17.38602102,128.56,128.52,0.48088457]
[1768918940782,16.91825244,128.56,128.52,0.48088457]
[1768918941187,7.77893288,128.56,128.52,0.48088457]
[1768918941394,16.91825244,128.56,128.52,0.48088457]
[1768918941880,7.77893288,128.56,128.52,0.48088457]
[1768918942086,9.13931956,128.55,128.52,0.48088457]
[1768918942394,16.91825244,128.56,128.52,0.48088457]
[1768918942866,16.79312918,128.56,128.52,0.48088457]
[1768918943189,7.77792431,128.57,128.53,0.48088457]
[1768918943393,9.13931956,128.58,128.53,0.48088457]
[1768918944189,5.25383107,128.57,128.53,0.48088457]
[1768918944492,16.91702725,128.58,128.53,0.48088457]
[1768918944677,5.25382134,128.57,128.53,0.48088457]
[1768918944988,16.91702725,128.58,128.53,0.48088457]
[1768918945187,5.25382134,128.57,128.53,0.48088457]
[1768918945365,9.13931956,128.6,128.55,0.48088457]
[1768918945565,5.2555017,128.59,128.55,0.48088457]
[1768918945766,5.2555017,128.58,128.55,0.48088457]
[1768918945970,9.13931956,128.6,128.55,0.48088457]
[1768918946167,5.25554879,128.59,128.55,0.48088457]
[1768918946367,5.25554879,128.58,128.55,0.48088457]
[1768918947276,3.75554879,128.58,128.57,0.48088457]
[1768918947478,0.46776858,128.59,128.55,33.95801029]
[1768918947685,0.46776858,128.59,128.55,53.40569601]
[1768918947999,0.46776858,128.62,128.58,9.13931956]
[1768918948171,0.46776858,128.62,128.59,9.13931956]
[1768918948372,0.46776858,128.62,128.58,33.95627546]
[1768918948972,0.46776858,128.62,128.58,33.94620311]
[1768918949188,0.46776858,128.62,128.58,24.8169559]
[1768918949493,0.46776858,128.62,128.58,33.94620311]
[1768918949698,0.46776858,128.61,128.58,17.04]
[1768918950495,0.46776858,128.61,128.58,24.81718204]
[1768918950888,0.46776858,128.63,128.58,33.94642925]
[1768918951089,0.46776858,128.62,128.58,24.81718204]
[1768918951401,0.46776858,128.62,128.58,17.04]
[1768918951902,0.46776858,128.62,128.57,16.90692919]
[1768918952202,0.46776858,128.62,128.58,17.04]
[1768918952690,0.46776858,128.61,128.58,17.04]
[1768918953670,9.12924721,128.61,128.53,19.44998149]
[1768918953984,0.46776858,128.59,128.55,16.90796128]
[1768918954908,0.46776858,128.6,128.55,16.90796128]
[1768918955300,0.46776858,128.61,128.57,9.12924721]
[1768918955902,0.46776858,128.61,128.57,26.16924721]
[1768918956397,0.46776858,128.61,128.57,17.04]
[1768918959210,0.46776858,128.61,128.57,33.94698584]
[1768918959718,0.46776858,128.62,128.58,9.12924721]
[1768918959884,0.46776858,128.63,128.59,9.12924721]
[1768918960075,0.46776858,128.63,128.6,17.04]
[1768918960583,0.46776858,128.61,128.58,17.04]
[1768918962296,0.46776858,128.61,128.58,24.8168779]
[1768918962475,0.46776858,128.63,128.59,9.12924721]
[1768918962896,0.46776858,128.63,128.59,3.71734521]
[1768918963296,0.46776858,128.63,128.58,28.53422311]
[1768918964597,0.45004761,128.62,128.59,17.04]
[1768918966293,0.1,128.64,128.61,3.71734521]
[1768918966483,5.19486557,128.66,128.63,3.71734521]
[1768918966679,0.48681652,128.67,128.64,3.71734521]
[1768918967287,0.48681652,128.67,128.63,20.75734521]
[1768918967905,0.48681652,128.67,128.64,3.71734521]
[1768918969026,0.48681652,128.67,128.64,9.12104363]
[1768918971911,0.48681652,128.67,128.65,9.12104363]
[1768918972112,0.48681652,128.67,128.65,9.09104363]
[1768918972508,0.58681652,128.68,128.65,9.09104363]
[1768918972710,0.58681652,128.68,128.66,9.12104363]
[1768918972891,0.1,128.68,128.66,26.16104363]
[1768918973092,0.58681652,128.68,128.66,26.16104363]
[1768918973405,0.1,128.68,128.67,9.12104363]
[1768918975902,0.1,128.68,128.67,9.09104363]
[1768918976115,0.1,128.68,128.67,9.12104363]
[1768918977712,0.1,128.68,128.66,26.16104363]
[1768918977910,0.58681652,128.68,128.66,17.04]
[1768918978617,0.1,128.68,128.66,26.16104363]
[1768918979089,0.58681652,128.68,128.66,26.16104363]
[1768918981017,0.1,128.68,128.66,26.16104363]
[1768918981322,0.1,128.68,128.66,17.04]
[1768918981994,0.1,128.68,128.66,33.93344516]
[1768918982196,0.1,128.68,128.66,26.16104363]
[1768918982398,0.1,128.68,128.66,33.93335082]
[1768918983020,0.1,128.68,128.67,9.12104363]
[1768918983215,0.1,128.68,128.67,9.09104366]
[1768918983716,0.1,128.68,128.66,17.04]
[1768918983717,0.1,128.68,128.66,26.16104363]
[1768918984515,0.58681652,128.68,128.63,9.12104363]
[1768918984823,0.48681652,128.66,128.59,5.34408856]
[1768918985022,0.48681652,128.66,128.61,16.89598115]
[1768918985413,0.48681652,128.66,128.62,17.02]
[1768918986411,0.48681652,128.65,128.6,16.89694603]
[1768918986814,0.48681652,128.63,128.59,17.02]
[1768918987004,0.48681652,128.62,128.59,17.02]
[1768918987736,0.48681652,128.61,128.58,17.02]
[1768918989206,0.48681652,128.61,128.56,7.77827883]
[1768918989440,0.48681652,128.59,128.57,17.02]
[1768918994114,0.48681652,128.59,128.55,7.77850596]
[1768918994428,0.48681652,128.59,128.56,17.04]
[1768918995838,0.48681652,128.59,128.57,17.04]
[1768919002634,0.47561983,128.57,128.54,0.48594153]
[1768919002836,4.19529776,128.57,128.54,17.04]
[1768919003035,0.47561983,128.55,128.52,0.2]
[1768919003240,0.47561983,128.55,128.52,17.24]
[1768919003441,0.47561983,128.56,128.53,0.48594153]
[1768919003741,0.47561983,128.56,128.52,25.5064998]
[1768919003926,0.47561983,128.55,128.52,17.24]
[1768919005343,0.47561983,128.56,128.52,21.44561946]
[1768919007651,0.47561983,128.56,128.52,29.22636147]
[1768919007846,0.47561983,128.56,128.53,0.48594153]
[1768919008225,0.47561983,128.56,128.52,29.22636147]
[1768919008948,0.47561983,128.56,128.52,29.22813388]
[1768919010027,0.47561983,128.56,128.53,0.48594153]
[1768919010351,0.47561983,128.59,128.56,0.48594153]
[1768919010542,0.47561983,128.59,128.55,20.76145034]
[1768919010847,0.47561983,128.6,128.56,3.72145034]
[1768919011056,0.47561983,128.6,128.56,3.69145035]
[1768919011651,0.47561983,128.59,128.55,20.76145034]
[1768919012233,0.47561983,128.58,128.52,0.2]
[1768919012550,0.47561983,128.58,128.54,3.72145034]
[1768919012727,0.47561983,128.58,128.54,4.20739187]
[1768919014446,0.47561983,128.58,128.54,11.98700916]
[1768919014650,0.47561983,128.58,128.55,3.72145034]
[1768919015346,0.47561983,128.58,128.55,4.20739187]
[1768919016148,0.47561983,128.58,128.56,3.72145034]
[1768919016348,4.19707017,128.57,128.52,12.18799827]
[1768919016649,0.47561983,128.56,128.53,17.04]
[1768919016846,0.47561983,128.56,128.53,17.52594153]
[1768919018458,0.47561983,128.56,128.53,29.02762003]
[1768919019649,0.47561983,128.56,128.53,28.5416785]
[1768919019851,0.47561983,128.56,128.53,17.04]
[1768919020734,0.47561983,128.56,128.53,24.82023768]
[1768919021137,0.47561983,128.56,128.53,17.04]
[1768919025758,0.47519512,128.54,128.52,0.2]
[1768919029138,0.47519512,128.55,128.52,0.2]
[1768919029339,0.47519512,128.55,128.52,4.39102487]
[1768919029546,0.47519512,128.55,128.52,21.43102487]
[1768919030046,4.19664546,128.55,128.52,17.24]
[1768919030251,0.47519512,128.54,128.52,17.24]
[1768919030459,0.47519512,128.55,128.52,17.24]
[1768919031964,0.47519512,128.55,128.52,20.96145034]
[1768919034469,0.47519512,128.54,128.52,17.24]
[1768919034663,0.47519512,128.53,128.49,0.46957453]
[1768919034864,0.47519512,128.52,128.49,17.04]
[1768919035081,0.41519511,128.52,128.49,17.04]
[1768919035749,3.72145034,128.52,128.49,17.04]
[1768919036151,3.72145034,128.52,128.48,0.46957453]
[1768919036399,3.72145034,128.51,128.48,0.46957453]
[1768919036545,3.72145034,128.56,128.48,0.46957453]
[1768919036546,3.72145034,128.52,128.48,0.46957453]
[1768919036964,0.47519512,128.51,128.48,0.46957453]
[1768919037468,0.47519512,128.51,128.47,17.50957453]
[1768919038645,4.19664546,128.51,128.47,17.50957453]
[1768919039560,0.47519512,128.5,128.47,17.50957453]
[1768919040369,4.19664546,128.51,128.47,29.01482438]
[1768919040567,0.47519512,128.51,128.47,29.01482438]
[1768919041066,0.47519512,128.53,128.49,0.46957453]
[1768919041244,0.47519512,128.53,128.49,4.19102487]
[1768919041649,0.47519512,128.53,128.5,3.72145034]
[1768919042756,0.47519512,128.52,128.49,4.19102487]
[1768919044754,0.47519512,128.54,128.51,4.19102487]
[1768919046070,0.47519512,128.55,128.52,4.19102487]
[1768919046474,0.47519512,128.54,128.5,21.23102487]
[1768919046777,0.47519512,128.53,128.5,21.23102487]
[1768919046971,0.47519512,128.54,128.51,0.46957453]
[1768919047178,0.47519512,128.54,128.5,24.82204292]
[1768919047479,0.47519512,128.54,128.51,3.72145034]
[1768919047883,0.47519512,128.55,128.52,0.46957453]
[1768919048082,0.47519512,128.55,128.52,0.43957455]
[1768919048584,0.47519512,128.54,128.51,3.72145034]
[1768919048887,0.47519512,128.54,128.5,20.76145034]
[1768919049064,0.47519512,128.54,128.51,3.72145034]
[1768919049980,0.47519512,128.54,128.51,4.19102487]
[1768919051071,0.47519512,128.54,128.51,0.46957453]